bitfinex-derivatives/quotes_BTCF0:USTF0_20240917
["timestamp","ask_amount","ask_price","bid_price","bid_amount"]
[1726588362063,1.5,61159.0,61108.0,0.44461]
[1726588362064,0.6839,61141.0,61109.0,0.49092]
[1726588362367,0.21216885,61128.0,61127.0,0.442584]
[1726588362556,0.21216885,61128.0,61127.0,0.803384]
[1726588362757,0.21216885,61133.0,61132.0,0.081777]
[1726588363057,0.00092,61141.0,61132.0,0.9608]
[1726588363358,0.21216885,61146.0,61140.0,0.3608]
[1726588363558,0.3624,61147.0,61145.0,0.3608]
[1726588364749,0.3624,61147.0,61142.0,0.081764]
[1726588364953,0.3624,61147.0,61145.0,0.3608]
[1726588365157,0.3764,61147.0,61145.0,0.3618]
[1726588365966,0.3764,61147.0,61145.0,0.47347632]
[1726588366160,0.17901469,61146.0,61145.0,0.47347632]
[1726588366460,0.3764,61147.0,61145.0,0.39271632]
[1726588366869,0.55541469,61147.0,61145.0,0.39271632]
[1726588367062,0.0501908,61146.0,61145.0,0.39271632]
[1726588367363,0.081765,61142.0,61131.0,0.081779]
[1726588367561,0.87947855,61146.0,61128.0,0.3608]
[1726588367562,0.28,61139.0,61128.0,0.3608]
[1726588367768,0.0501908,61138.0,61128.0,0.3608]
[1726588367970,0.0501908,61138.0,61134.0,0.081775]
[1726588368269,0.0501908,61137.0,61134.0,0.081775]
[1726588368567,0.0501908,61137.0,61128.0,0.39078995]
[1726588368568,0.0501908,61136.0,61135.0,0.081773]
[1726588368770,0.0501908,61138.0,61135.0,0.081773]
[1726588369069,0.0501908,61137.0,61136.0,0.081772]
[1726588370058,0.0501908,61137.0,61135.0,0.001]
[1726588370764,0.014,61136.0,61135.0,0.001]
[1726588370970,0.0641908,61136.0,61135.0,0.001]
[1726588371469,0.0501908,61136.0,61135.0,0.001]
[1726588371960,0.0641908,61136.0,61135.0,0.001]
[1726588372658,0.0681908,61136.0,61135.0,0.002]
[1726588373570,0.0681908,61136.0,61135.0,0.03083253]
[1726588374272,0.2447908,61136.0,61135.0,0.03083253]
[1726588375475,0.2447908,61136.0,61135.0,0.11260553]
[1726588375973,0.2447908,61136.0,61135.0,0.03083253]
[1726588376268,0.32657441,61136.0,61135.0,0.11260553]
[1726588376473,0.24480241,61136.0,61135.0,0.11260553]
[1726588378276,0.32657441,61136.0,61135.0,0.11260553]
[1726588378663,0.32657428,61136.0,61135.0,0.11260553]
[1726588380367,0.32657428,61136.0,61135.0,0.03083253]
[1726588380573,0.32657428,61136.0,61135.0,0.11260553]
[1726588381472,0.24480228,61136.0,61135.0,0.11260553]
[1726588382069,0.24480228,61136.0,61135.0,0.19437853]
[1726588382378,0.24480228,61136.0,61135.0,0.47340553]
[1726588382379,0.06820228,61136.0,61135.0,0.47340553]
[1726588382572,0.06820228,61136.0,61135.0,0.53574068]
[1726588383279,0.06820228,61136.0,61135.0,0.45396768]
[1726588383584,0.06820228,61136.0,61135.0,0.09316768]
[1726588384681,0.06820055,61136.0,61135.0,0.09316768]
[1726588384975,0.14997255,61136.0,61135.0,0.09316768]
[1726588385279,0.06820055,61136.0,61135.0,0.09316768]
[1726588385867,0.25820055,61136.0,61135.0,0.09316768]
[1726588386875,0.33997255,61136.0,61135.0,0.09316768]
[1726588387274,0.33997255,61136.0,61135.0,0.01139468]
[1726588387482,0.081774,61135.0,61132.0,0.3608]
[1726588387681,0.13197555,61134.0,61133.0,0.081776]
[1726588388071,0.05020055,61134.0,61133.0,0.081776]
[1726588388275,0.13197555,61134.0,61133.0,0.081776]
[1726588388481,0.081781,61131.0,61130.0,0.081779]
[1726588388673,0.13198155,61131.0,61130.0,0.081779]
[1726588388975,0.32198155,61131.0,61130.0,0.081779]
[1726588389174,0.24020055,61131.0,61130.0,0.081779]
[1726588389475,0.24020055,61131.0,61127.0,0.00245389]
[1726588389476,0.32198484,61131.0,61127.0,0.0318561]
[1726588389682,0.081783,61128.0,61127.0,0.081784]
[1726588389881,0.081788,61125.0,61124.0,0.081788]
[1726588390181,0.13199384,61125.0,61124.0,0.081788]
[1726588390483,0.05020584,61125.0,61124.0,0.081788]
[1726588390670,0.081785,61127.0,61126.0,0.081785]
[1726588390876,0.13199537,61127.0,61126.0,0.081785]
[1726588391080,0.05021037,61127.0,61126.0,0.081785]
[1726588391378,0.05021037,61127.0,61126.0,0.16357]
[1726588391587,0.05021037,61127.0,61126.0,0.081785]
[1726588392279,0.06321037,61127.0,61126.0,0.083785]
[1726588393384,0.06321037,61127.0,61126.0,0.03073588]
[1726588393681,0.14499437,61127.0,61126.0,0.03073588]
[1726588393983,0.14499437,61127.0,61126.0,0.0276623]
[1726588394186,0.14499437,61127.0,61125.0,0.081786]
[1726588394386,0.05021037,61126.0,61125.0,0.081786]
[1726588395489,0.05021037,61126.0,61125.0,0.083786]
[1726588395882,0.13799537,61126.0,61125.0,0.083786]
[1726588397288,0.14499537,61126.0,61125.0,0.083786]
[1726588398387,0.20365816,61126.0,61125.0,0.083786]
[1726588398891,0.12187316,61126.0,61125.0,0.083786]
[1726588399191,0.06321037,61126.0,61125.0,0.083786]
[1726588399584,0.06321037,61126.0,61125.0,0.083426]
[1726588399781,0.12187316,61126.0,61125.0,0.083426]
[1726588399981,0.06321037,61126.0,61125.0,0.083426]
[1726588400187,0.12187316,61126.0,61125.0,0.083426]
[1726588400383,0.12187316,61126.0,61125.0,0.165213]
[1726588400580,0.12187316,61126.0,61125.0,0.083426]
[1726588400775,0.06321037,61126.0,61125.0,0.526374]
[1726588400980,0.06321037,61126.0,61125.0,0.608161]
[1726588401487,0.06321037,61126.0,61125.0,0.526374]
[1726588401876,0.06321037,61126.0,61125.0,0.444587]
[1726588402082,0.06321037,61126.0,61125.0,0.526374]
[1726588403088,0.06321037,61126.0,61125.0,0.444587]
[1726588403787,0.06320471,61126.0,61125.0,0.444587]
[1726588403990,0.06320471,61126.0,61125.0,0.526374]
[1726588404288,0.06320471,61126.0,61125.0,0.444587]
[1726588406889,0.27559011,61126.0,61125.0,0.444587]
[1726588407389,0.06320471,61126.0,61125.0,0.444587]
[1726588408790,0.06320464,61126.0,61125.0,0.444587]
[1726588411081,0.06320464,61126.0,61125.0,0.3628]
[1726588411887,0.06320464,61126.0,61125.0,0.444587]
[1726588412087,0.42400464,61126.0,61125.0,0.002]
[1726588412378,0.08179,61123.0,61118.0,0.081796]
[1726588412580,0.48266743,61126.0,61117.0,0.0024543]
[1726588412581,0.10886743,61122.0,61120.0,0.3608]
[1726588412781,0.05020464,61121.0,61120.0,0.442594]
[1726588413886,0.26261734,61121.0,61120.0,0.442594]
[1726588414284,0.26361734,61121.0,61120.0,0.442594]
[1726588414597,0.26361734,61121.0,61120.0,0.442554]
[1726588414889,0.05120464,61121.0,61120.0,0.442554]
[1726588415787,0.05220464,61121.0,61120.0,0.442554]
[1726588417291,0.05220464,61121.0,61120.0,0.36076]
[1726588418286,0.05220464,61121.0,61120.0,0.442554]
[1726588419092,0.05220464,61121.0,61120.0,0.36076]
[1726588419290,0.13399664,61121.0,61120.0,0.36076]
[1726588420490,0.34644459,61121.0,61120.0,0.442554]
[1726588420787,0.26465259,61121.0,61120.0,0.442554]
[1726588421394,0.05220464,61121.0,61120.0,0.442554]
[1726588423089,0.002,61121.0,61120.0,0.442554]
[1726588423293,0.002,61121.0,61120.0,0.524348]
[1726588423488,0.05221099,61121.0,61120.0,0.524348]
[1726588423694,0.05866279,61127.0,61126.0,0.16357]
[1726588423888,0.1621,61136.0,61133.0,0.081776]
[1726588424096,0.1621,61136.0,61135.0,0.3608]
[1726588424297,0.22076279,61136.0,61135.0,0.3608]
[1726588424493,0.1621,61136.0,61135.0,0.3608]
[1726588425296,0.22076279,61136.0,61135.0,0.3608]
[1726588425496,0.22076279,61136.0,61135.0,0.3618]
[1726588425702,0.1761,61136.0,61135.0,0.3618]
[1726588426006,0.014,61136.0,61135.0,0.443573]
[1726588426791,0.02,61136.0,61135.0,0.47447966]
[1726588427504,0.02,61136.0,61135.0,0.03190666]
[1726588427703,0.019,61136.0,61135.0,0.03190666]
[1726588428104,0.013,61136.0,61135.0,0.03190666]
[1726588428608,0.013,61136.0,61135.0,0.11367966]
[1726588428813,0.06319832,61136.0,61135.0,0.11367966]
[1726588437502,0.06319855,61136.0,61135.0,0.11367966]
[1726588437702,0.06319855,61136.0,61135.0,0.03190666]
[1726588438515,0.14497055,61136.0,61135.0,0.03190666]
[1726588438813,0.1449711,61136.0,61135.0,0.03190666]
[1726588440507,0.081773,61135.0,61134.0,0.3452584]
[1726588440709,0.081773,61135.0,61134.0,0.4270334]
[1726588440710,0.26217309,61135.0,61134.0,0.4270334]
[1726588440911,0.26217309,61135.0,61134.0,0.45640463]
[1726588441114,0.26217238,61135.0,61134.0,0.53817963]
[1726588441307,0.05019839,61135.0,61134.0,0.53817963]
[1726588441505,0.05019839,61135.0,61134.0,0.45640463]
[1726588441712,0.05719839,61135.0,61134.0,0.45740463]
[1726588442305,0.06419839,61135.0,61134.0,0.45840463]
[1726588442804,0.06419839,61135.0,61134.0,0.37662963]
[1726588443811,0.27619923,61135.0,61134.0,0.37662963]
[1726588444316,0.06419839,61135.0,61134.0,0.37662963]
[1726588444709,0.06419839,61135.0,61134.0,0.37658963]
[1726588445407,0.06419839,61135.0,61134.0,0.54013963]
[1726588445804,0.06419839,61135.0,61134.0,0.45836463]
[1726588446205,0.06419839,61135.0,61134.0,0.37658963]
[1726588446408,0.06419839,61135.0,61134.0,0.45836463]
[1726588447111,0.06419839,61135.0,61134.0,0.54013963]
[1726588447314,0.06419839,61135.0,61134.0,0.45836463]
[1726588453319,0.06419839,61135.0,61134.0,0.37658963]
[1726588454019,0.06419839,61135.0,61134.0,0.03137123]
[1726588455319,0.06419839,61135.0,61134.0,0.39217123]
[1726588455534,0.14597139,61135.0,61134.0,0.39217123]
[1726588456215,0.06419839,61135.0,61134.0,0.39217123]
[1726588456522,0.14597139,61135.0,61134.0,0.39217123]
[1726588457328,0.06419839,61135.0,61134.0,0.47394623]
[1726588459316,0.35797223,61135.0,61134.0,0.39217123]
[1726588459730,0.20462693,61135.0,61134.0,0.39217123]
[1726588459931,0.14597139,61135.0,61134.0,0.39217123]
[1726588460421,0.14597139,61135.0,61134.0,0.47394623]
[1726588461421,0.06419839,61135.0,61133.0,0.081776]
[1726588461726,0.24019839,61134.0,61126.0,0.3608]
[1726588461915,0.081778,61132.0,61131.0,0.081778]
[1726588462115,0.13197639,61132.0,61131.0,0.081778]
[1726588464112,0.13497639,61132.0,61131.0,0.081778]
[1726588464318,0.13797639,61132.0,61131.0,0.081778]
[1726588465235,1.22874062,61132.0,61131.0,0.081778]
[1726588465417,1.20561816,61132.0,61126.0,0.38760948]
[1726588465728,0.19,61127.0,61126.0,0.46939448]
[1726588465928,0.24020262,61127.0,61126.0,0.46939448]
[1726588466430,0.10885816,61127.0,61126.0,0.55117948]
[1726588466624,0.05020262,61127.0,61126.0,0.55117948]
[1726588466831,0.05020262,61127.0,61126.0,0.55317948]
[1726588467330,0.05020262,61127.0,61126.0,0.55517948]
[1726588467825,0.05020262,61127.0,61126.0,0.47339448]
[1726588468029,0.05020262,61127.0,61126.0,0.47139448]
[1726588468220,0.05020262,61127.0,61126.0,0.47339448]
[1726588468621,0.05020262,61127.0,61126.0,0.11259448]
[1726588468823,0.13198662,61127.0,61126.0,0.03080948]
[1726588469226,0.68278662,61127.0,61126.0,0.03080948]
[1726588469427,0.74144216,61127.0,61126.0,0.03080948]
[1726588469825,0.081796,61119.0,61110.0,0.3608]
[1726588470025,0.0502121,61118.0,61117.0,0.0842523]
[1726588470934,0.0502121,61118.0,61117.0,0.0902523]
[1726588471338,0.0502121,61118.0,61117.0,0.12833487]
[1726588471527,0.0512121,61118.0,61117.0,0.12833487]
[1726588472236,0.0522121,61118.0,61117.0,0.12833487]
[1726588472625,0.1340081,61118.0,61117.0,0.04653687]
[1726588474225,0.34645438,61118.0,61117.0,0.04653687]
[1726588474430,0.34645438,61118.0,61117.0,0.04629687]
[1726588474639,0.1340081,61118.0,61117.0,0.04629687]
[1726588474935,0.05221342,61118.0,61117.0,0.12809487]
[1726588475135,0.26432024,61118.0,61117.0,0.20989287]
[1726588475633,0.05221342,61118.0,61117.0,0.20989287]
[1726588475834,0.05221342,61118.0,61117.0,0.12809487]
[1726588476338,0.05221342,61118.0,61117.0,0.12588057]
[1726588480030,0.05221342,61118.0,61117.0,0.04408257]
[1726588481437,0.13400942,61118.0,61117.0,0.04408257]
[1726588484043,0.13400942,61118.0,61117.0,0.12588057]
[1726588485440,0.05221342,61118.0,61117.0,0.20767857]
[1726588485741,0.05221342,61118.0,61117.0,0.12588057]
[1726588485929,0.05413185,61132.0,61119.0,0.32718]
[1726588486127,0.53925613,61150.0,61133.0,0.081775]
[1726588486333,0.05865613,61149.0,61145.0,0.081759]
[1726588486533,0.19,61146.0,61145.0,0.081759]
[1726588486841,0.3608,61166.0,61142.0,0.3608]
[1726588487031,0.19,61146.0,61142.0,0.3608]
[1726588487832,0.199,61146.0,61145.0,0.001]
[1726588488241,0.199,61146.0,61145.0,0.08276]
[1726588488242,0.009,61146.0,61145.0,0.08276]
[1726588489135,0.3698,61146.0,61145.0,0.001]
[1726588489336,0.3698,61146.0,61137.0,0.3632535]
[1726588489337,0.49064,61145.0,61137.0,0.0024535]
[1726588489644,0.623,61146.0,61137.0,0.0024535]
[1726588489645,0.19,61138.0,61137.0,0.0024535]
[1726588489834,0.19,61138.0,61137.0,0.02928186]
[1726588490439,0.19,61138.0,61137.0,0.11105286]
[1726588490642,0.19,61138.0,61137.0,0.02682836]
[1726588490852,0.19,61138.0,61137.0,0.3608]
[1726588491044,0.25019796,61138.0,61137.0,0.3618]
[1726588491535,0.26019796,61138.0,61137.0,0.3628]
[1726588491734,0.26019796,61138.0,61137.0,0.444571]
[1726588492838,0.02,61138.0,61137.0,0.444571]
[1726588493140,0.07019312,61138.0,61137.0,0.444571]
[1726588493340,0.07019312,61138.0,61137.0,0.3628]
[1726588495842,0.07019312,61138.0,61137.0,0.002]
[1726588498347,0.34196212,61138.0,61137.0,0.002]
[1726588498742,0.07019312,61138.0,61137.0,0.3628]
[1726588498941,0.07019352,61138.0,61137.0,0.002]
[1726588499142,0.15196252,61138.0,61137.0,0.002]
[1726588500551,0.07019352,61138.0,61137.0,0.3628]
[1726588500739,0.07019352,61138.0,61137.0,0.002]
[1726588500945,0.15196252,61138.0,61137.0,0.002]
[1726588501939,0.02,61138.0,61137.0,0.083771]
[1726588503649,0.07019294,61138.0,61137.0,0.273771]
[1726588503962,0.07019294,61138.0,61137.0,0.083771]
[1726588504860,0.07019294,61138.0,61137.0,0.083571]
[1726588505054,0.02,61138.0,61137.0,0.083571]
[1726588506548,0.07019172,61138.0,61137.0,0.083571]
[1726588508756,0.07019172,61138.0,61137.0,0.165342]
[1726588509063,0.02,61138.0,61137.0,0.355342]
[1726588509361,0.07018905,61138.0,61137.0,0.355342]
[1726588510857,0.07018905,61138.0,61137.0,0.0018]
[1726588511052,0.07019426,61138.0,61137.0,0.083571]
[1726588511962,0.375553,61150.0,61137.0,0.083571]
[1726588511963,0.3608,61151.0,61146.0,0.081759]
[1726588512157,0.149,61159.0,61150.0,0.19]
[1726588512456,0.149,61159.0,61158.0,0.632543]
[1726588514556,0.149,61159.0,61158.0,0.993343]
[1726588514758,0.149,61159.0,61158.0,1.02030033]
[1726588515262,0.16,61159.0,61158.0,1.02230033]
[1726588516161,0.011,61159.0,61158.0,0.83230033]
[1726588517258,0.06117326,61159.0,61158.0,0.83230033]
[1726588517453,0.011,61159.0,61158.0,1.02230033]
[1726588518163,0.06117296,61159.0,61158.0,1.02230033]
[1726588520965,0.081747,61155.0,61154.0,0.00245261]
[1726588521157,0.32192444,61155.0,61138.0,0.632569]
[1726588521459,0.20207744,61154.0,61145.0,0.081759]
[1726588521664,0.05017744,61153.0,61152.0,0.081751]
[1726588521865,0.011,61159.0,61152.0,0.19]
[1726588522168,0.0501788,61158.0,61157.0,0.271744]
[1726588524058,0.0501788,61158.0,61157.0,0.081744]
[1726588524658,0.0501788,61158.0,61157.0,0.082744]
[1726588525765,0.0611788,61158.0,61157.0,0.083744]
[1726588527769,0.0611788,61158.0,61157.0,0.002]
[1726588528067,1.15169955,61158.0,61152.0,0.02715315]
[1726588528273,0.271745,61156.0,61147.0,0.081756]
[1726588528460,0.05017955,61155.0,61150.0,0.081753]
[1726588528656,0.08175,61153.0,61143.0,0.3608]
[1726588528856,0.05017955,61155.0,61140.0,0.19]
[1726588528857,0.081755,61149.0,61145.0,0.08176]
[1726588529060,0.081755,61149.0,61140.0,0.19]
[1726588529061,0.05017955,61148.0,61146.0,0.081758]
[1726588529775,0.3608,61184.0,61170.0,0.081726]
[1726588529961,0.081665,61217.0,61157.0,0.081744]
[1726588529962,0.382525,61172.0,61162.0,0.081737]
[1726588530162,0.19,61161.0,61147.0,0.0038]
[1726588530370,0.19,61153.0,61151.0,0.081752]
[1726588530571,0.195,61158.0,61151.0,0.081752]
[1726588530773,0.195,61158.0,61152.0,0.081751]
[1726588530973,0.1479,61160.0,61153.0,0.081749]
[1726588531170,0.1479,61160.0,61145.0,0.21750126]
[1726588531365,0.1479,61160.0,61151.0,0.081752]
[1726588531669,0.1479,61160.0,61145.0,0.21750126]
[1726588531867,0.1479,61160.0,61150.0,0.19]
[1726588532071,0.1479,61160.0,61155.0,0.081746]
[1726588532467,0.1479,61160.0,61157.0,0.081744]
[1726588532670,0.1479,61160.0,61158.0,0.081743]
[1726588533068,0.1479,61160.0,61159.0,0.081741]
[1726588533868,0.1499,61160.0,61159.0,0.081741]
[1726588534467,0.1499,61160.0,61159.0,0.1088133]
[1726588534669,0.2000777,61160.0,61159.0,0.1088133]
[1726588535565,0.2000777,61160.0,61159.0,0.1078133]
[1726588536072,0.1980777,61160.0,61159.0,0.1078133]
[1726588536273,0.19807815,61160.0,61159.0,0.1088133]
[1726588537273,0.19807815,61160.0,61159.0,0.001]
[1726588537481,1.64939815,61160.0,61148.0,0.3608]
[1726588537770,1.64939815,61160.0,61134.0,0.1938]
[1726588537771,0.081758,61147.0,61134.0,0.1938]
[1726588538074,0.081758,61147.0,61128.0,0.2761]
[1726588538075,0.05017815,61146.0,61145.0,0.08176]
[1726588538374,0.3608,61154.0,61145.0,0.27176]
[1726588538671,0.05018427,61153.0,61148.0,0.008]
[1726588538874,0.05018427,61152.0,61148.0,0.008]
[1726588539074,0.05018427,61151.0,61150.0,0.081753]
[1726588539878,0.05018427,61151.0,61150.0,0.271753]
[1726588540270,0.05018427,61151.0,61150.0,0.275753]
[1726588541179,0.0501797,61151.0,61150.0,0.199]
[1726588541366,0.0501797,61151.0,61150.0,0.280753]
[1726588541967,0.0501797,61151.0,61150.0,0.30703905]
[1726588542665,0.0501797,61151.0,61150.0,0.30303905]
[1726588542867,0.0501797,61151.0,61150.0,0.30603905]
[1726588543064,0.1319317,61151.0,61150.0,0.03428605]
[1726588544369,0.1319317,61151.0,61150.0,0.03128605]
[1726588544569,0.1339317,61151.0,61150.0,0.03128605]
[1726588545370,0.1339317,61151.0,61150.0,0.02628605]
[1726588545572,0.081754,61150.0,61148.0,0.081755]
[1726588545770,0.4927347,61149.0,61148.0,0.081755]
[1726588545965,0.55137486,61149.0,61148.0,0.081755]
[1726588546371,0.46961986,61149.0,61148.0,0.081755]
[1726588546585,0.4109797,61149.0,61148.0,0.081755]
[1726588546774,0.0501797,61149.0,61148.0,0.271755]
[1726588547075,0.05218454,61149.0,61148.0,0.271755]
[1726588547780,0.05418454,61149.0,61148.0,0.271755]
[1726588548169,0.05418454,61149.0,61148.0,0.081755]
[1726588548677,0.13593954,61149.0,61146.0,0.081758]
[1726588548979,0.13593954,61149.0,61142.0,0.02780579]
[1726588548980,0.081758,61147.0,61145.0,0.081759]
[1726588549284,0.20448454,61148.0,61145.0,0.081759]
[1726588549285,0.19788454,61146.0,61145.0,0.08176]
[1726588549488,0.19788454,61146.0,61145.0,0.08152]
[1726588550484,0.00084,61192.0,61157.0,0.163488]
[1726588550688,0.05862483,61197.0,61182.0,0.9116]
[1726588550981,0.3608,61208.0,61194.0,0.19]
[1726588551172,0.3608,61208.0,61188.0,0.19]
[1726588551480,0.19,61205.0,61194.0,0.3608]
[1726588551885,0.3608,61208.0,61192.0,0.3608]
[1726588551886,0.19,61200.0,61192.0,0.3608]
[1726588552184,0.2904,61199.0,61194.0,0.001]
[1726588552783,0.5508,61195.0,61182.0,0.02723275]
[1726588552992,0.001,61183.0,61182.0,0.10742375]
[1726588553283,0.001,61183.0,61182.0,0.29742375]
[1726588553485,0.001,61183.0,61182.0,0.10742375]
[1726588553685,0.1548,61194.0,61182.0,0.02571275]
[1726588553870,0.1548,61194.0,61187.0,0.081704]
[1726588554070,0.1548,61194.0,61188.0,0.081703]
[1726588554283,0.1548,61194.0,61189.0,0.081701]
[1726588554477,0.1548,61194.0,61180.0,0.3608]
[1726588554682,0.18009098,61194.0,61182.0,0.008]
[1726588554883,0.19,61185.0,61182.0,0.008]
[1726588555078,0.19,61185.0,61182.0,0.08971]
[1726588555476,0.19,61185.0,61183.0,0.081709]
[1726588555677,0.19,61185.0,61170.0,0.3608]
[1726588555876,0.3608,61186.0,61182.0,0.008]
[1726588556585,0.19,61183.0,61182.0,0.089711]
[1726588557487,0.19,61183.0,61182.0,0.081711]
[1726588557986,1.28332,61183.0,61168.0,0.3608]
[1726588558194,0.19,61176.0,61175.0,0.08172]
[1726588558387,0.19,61176.0,61172.0,0.081723]
[1726588558589,0.19,61173.0,61172.0,0.081723]
[1726588560593,0.191,61173.0,61172.0,0.086723]
[1726588560992,0.191,61173.0,61163.0,0.02508565]
[1726588560993,1.6422,61173.0,61163.0,0.02508565]
[1726588561196,0.5508,61164.0,61163.0,0.081736]
[1726588561690,0.3648,61173.0,61163.0,0.271736]
[1726588561889,0.3608,61202.0,61187.0,0.081704]
[1726588562085,0.19,61196.0,61192.0,0.3608]
[1726588562286,0.19,61196.0,61195.0,0.081693]
[1726588564086,0.007,61196.0,61195.0,0.082693]
[1726588564287,0.3678,61196.0,61195.0,0.082693]
[1726588564489,0.3698,61196.0,61195.0,0.082693]
[1726588564688,0.5598,61196.0,61195.0,0.082693]
[1726588564891,0.5528,61196.0,61195.0,0.081693]
[1726588565086,0.5528,61196.0,61195.0,0.10737993]
[1726588565692,0.5528,61196.0,61195.0,0.10937993]
[1726588565899,0.3628,61196.0,61195.0,0.10937993]
[1726588566283,0.002,61196.0,61195.0,0.10937993]
[1726588566790,0.3608,61199.0,61198.0,0.081689]
[1726588567192,0.3608,61199.0,61195.0,0.02868693]
[1726588567394,0.19,61196.0,61195.0,0.11037893]
[1726588567896,0.3608,61199.0,61198.0,0.081689]
[1726588568494,0.3628,61199.0,61198.0,0.081689]
[1726588569198,0.3638,61199.0,61198.0,0.081689]
[1726588570203,0.445489,61199.0,61195.0,0.10737893]
[1726588570395,0.3608,61231.0,61198.0,0.5508]
[1726588570600,0.3608,61231.0,61228.0,0.081649]
[1726588570901,0.3608,61231.0,61229.0,0.081647]
[1726588571092,0.19,61230.0,61214.0,0.442467]
[1726588571288,0.3608,61231.0,61217.0,0.081664]
[1726588571289,0.19,61218.0,61217.0,0.081664]
[1726588571493,0.19,61223.0,61214.0,0.3608]
[1726588571690,0.19,61223.0,61219.0,0.08166]
[1726588571901,0.5508,61223.0,61220.0,0.081659]
[1726588572097,0.3608,61221.0,61220.0,0.081659]
[1726588572398,0.19,61228.0,61219.0,0.3608]
[1726588572599,0.19,61228.0,61224.0,0.081654]
[1726588572903,0.1456,61227.0,61219.0,0.3608]
[1726588573098,0.003,61223.0,61219.0,0.3608]
[1726588573300,0.003,61223.0,61222.0,0.081657]
[1726588574201,0.009,61223.0,61222.0,0.081657]
[1726588574699,0.009,61223.0,61222.0,0.271657]
[1726588574700,0.006,61223.0,61222.0,0.271657]
[1726588575101,0.003,61228.0,61227.0,0.081651]
[1726588575294,0.3608,61236.0,61227.0,0.081651]
[1726588575295,0.38630358,61236.0,61228.0,0.081649]
[1726588575495,0.38630358,61236.0,61229.0,0.081648]
[1726588575496,0.02550358,61236.0,61229.0,0.081648]
[1726588575806,0.6935,61238.0,61230.0,0.081646]
[1726588575999,0.69434,61238.0,61230.0,0.081646]
[1726588576508,0.17066418,61237.0,61232.0,0.081644]
[1726588577094,0.5508,61233.0,61222.0,0.001]
[1726588577300,0.3608,61223.0,61222.0,0.082657]
[1726588577502,0.3608,61223.0,61222.0,0.10788064]
[1726588577908,0.3608,61224.0,61222.0,0.02622364]
[1726588578101,0.008,61228.0,61216.0,0.271665]
[1726588578299,0.008,61228.0,61227.0,0.081651]
[1726588578500,0.3688,61228.0,61227.0,0.081651]
[1726588578901,0.3608,61228.0,61227.0,0.081651]
[1726588579097,0.19,61231.0,61222.0,0.001]
[1726588579609,0.004,61228.0,61227.0,0.082651]
[1726588580906,0.012,61228.0,61227.0,0.083651]
[1726588581601,0.008,61228.0,61227.0,0.082651]
[1726588582314,0.012,61228.0,61227.0,0.083651]
[1726588583209,0.644449,61228.0,61227.0,0.002]
[1726588583713,0.644449,61228.0,61227.0,0.083651]
[1726588584401,1.65276,61228.0,61222.0,0.02548122]
[1726588584607,1.65276,61228.0,61215.0,0.081666]
[1726588584608,0.081667,61216.0,61215.0,0.081666]
[1726588584803,0.632467,61216.0,61215.0,0.081666]
[1726588586113,0.632467,61216.0,61215.0,0.082666]
[1726588586912,0.3608,61216.0,61215.0,0.081666]
[1726588587911,0.3618,61216.0,61215.0,0.081666]
[1726588588605,0.3608,61216.0,61215.0,0.10688953]
[1726588588806,0.3618,61216.0,61215.0,0.10688953]
[1726588589306,0.3618,61216.0,61215.0,0.10788953]
[1726588590509,0.3608,61216.0,61215.0,0.10788953]
[1726588590716,0.3608,61216.0,61215.0,0.02622353]
[1726588591119,1.45088,61216.0,61200.0,0.3608]
[1726588591318,0.5508,61211.0,61209.0,0.081674]
[1726588591512,0.5508,61211.0,61210.0,0.081673]
[1726588591717,0.5508,61211.0,61200.0,0.38682994]
[1726588591911,0.19,61201.0,61200.0,0.10771694]
[1726588592609,0.5508,61201.0,61200.0,0.10771694]
[1726588593013,0.282,61204.0,61203.0,0.081683]
[1726588593415,0.282,61204.0,61203.0,0.163366]
[1726588593618,0.282,61204.0,61203.0,0.081683]
[1726588594321,0.1391,61204.0,61203.0,0.081683]
[1726588594520,0.1391,61204.0,61203.0,0.081243]
[1726588595019,0.1391,61204.0,61203.0,0.084243]
[1726588595426,0.1391,61204.0,61203.0,0.088243]
[1726588597321,0.1391,61204.0,61203.0,0.004]
[1726588597531,0.220781,61204.0,61203.0,0.009]
[1726588597914,0.1391,61204.0,61203.0,0.009]
[1726588598116,0.1391,61204.0,61203.0,0.004]
[1726588598311,0.1391,61204.0,61203.0,0.088683]
[1726588598528,0.1391,61204.0,61203.0,0.087683]
[1726588599027,0.1391,61204.0,61203.0,0.084683]
[1726588599324,0.1411,61204.0,61203.0,0.003]
[1726588599520,0.222781,61204.0,61203.0,0.003]
[1726588599825,0.220781,61204.0,61203.0,0.008]
[1726588600526,0.224781,61204.0,61203.0,0.005]
[1726588601226,0.081683,61203.0,61201.0,0.081684]
[1726588601723,0.081684,61202.0,61201.0,0.081684]
[1726588602427,0.081684,61202.0,61201.0,0.083684]
[1726588602821,0.1401,61204.0,61203.0,0.081683]
[1726588603021,0.1401,61204.0,61203.0,0.245049]
[1726588603022,0.001,61204.0,61203.0,0.245049]
[1726588603237,0.001,61204.0,61203.0,0.163366]
[1726588603542,0.08167,61213.0,61211.0,0.081672]
[1726588603727,0.1408,61214.0,61213.0,0.081669]
[1726588604124,0.222468,61214.0,61213.0,0.081669]
[1726588604326,0.08167,61213.0,61210.0,0.081673]
[1726588604617,0.08167,61213.0,61211.0,0.086672]
[1726588604821,0.08167,61213.0,61212.0,0.081671]
[1726588606327,0.08167,61213.0,61197.0,0.08169]
[1726588606328,0.49008,61213.0,61197.0,0.08169]
[1726588606533,0.19,61203.0,61202.0,0.081684]
[1726588608032,0.19,61203.0,61202.0,0.082684]
[1726588612233,0.353366,61203.0,61202.0,0.001]
[1726588612837,0.271683,61203.0,61202.0,0.082684]
[1726588613023,0.19,61203.0,61202.0,0.082684]
[1726588614139,0.271683,61203.0,61202.0,0.082684]
[1726588614935,0.19,61203.0,61202.0,0.082684]
[1726588615831,0.271683,61203.0,61202.0,0.082684]
[1726588617434,0.353366,61203.0,61202.0,0.001]